bitfinex/quotes_BTCUSD_20250610
["timestamp","ask_amount","ask_price","bid_price","bid_amount"]
[1749523429754,1.24999177,109630.0,109620.0,0.44108615]
[1749523430152,1.24999177,109630.0,109620.0,0.44108614]
[1749523430739,1.24999177,109630.0,109620.0,0.44108654]
[1749523430947,1.24999177,109630.0,109620.0,0.0410876]
[1749523431327,1.24999177,109630.0,109620.0,0.02400571]
[1749523431533,1.24999177,109630.0,109620.0,0.4410876]
[1749523431937,1.24999177,109630.0,109620.0,0.44109212]
[1749523432135,1.24999177,109630.0,109620.0,0.42401023]
[1749523432335,1.24999177,109630.0,109620.0,0.43469396]
[1749523432541,1.24999177,109630.0,109620.0,0.44110419]
[1749523432981,1.24999177,109630.0,109620.0,0.42401023]
[1749523433196,1.24999177,109630.0,109620.0,0.44110419]
[1749523433406,1.24999177,109630.0,109620.0,0.44110418]
[1749523433823,1.24999177,109630.0,109620.0,0.44110467]
[1749523434043,1.24999177,109630.0,109620.0,0.42401036]
[1749523434251,1.24999177,109630.0,109620.0,0.4176]
[1749523434455,1.24999177,109630.0,109620.0,0.04110466]
[1749523435176,1.24999177,109630.0,109620.0,0.44110579]
[1749523435675,1.24999177,109630.0,109620.0,0.4346943]
[1749523435863,1.24999177,109630.0,109620.0,0.4176]
[1749523435986,1.24999177,109630.0,109620.0,0.42401149]
[1749523436183,1.24999177,109630.0,109620.0,0.43469732]
[1749523436385,1.24999177,109630.0,109620.0,0.44110881]
[1749523437279,1.24999177,109630.0,109620.0,0.44111028]
[1749523437428,1.26659177,109630.0,109620.0,0.01909879]
[1749523437631,1.26659177,109630.0,109620.0,0.02551085]
[1749523437828,1.26659177,109630.0,109620.0,0.00841206]
[1749523438014,1.26659177,109630.0,109620.0,0.02551089]
[1749523438973,1.26659177,109630.0,109620.0,0.00841199]
[1749523439286,1.26659177,109630.0,109620.0,0.02551061]
[1749523439515,1.24999177,109630.0,109620.0,0.01909863]
[1749523439713,1.24999177,109630.0,109620.0,0.02551061]
[1749523440250,0.69615299,109630.0,109620.0,0.02551058]
[1749523440494,1.24999177,109630.0,109620.0,0.04201058]
[1749523440703,1.24999177,109630.0,109620.0,0.05791013]
[1749523440874,0.96607177,109630.0,109620.0,0.08519073]
[1749523441086,1.15799391,109630.0,109620.0,0.08519017]
[1749523441285,1.15799391,109630.0,109620.0,0.06809224]
[1749523441484,1.15799391,109630.0,109620.0,0.48518995]
[1749523441694,1.15799391,109630.0,109620.0,0.46809224]
[1749523441922,1.15783391,109630.0,109620.0,0.48518995]
[1749523442163,1.15783391,109630.0,109620.0,0.48518996]
[1749523442360,1.15783391,109630.0,109620.0,0.48518999]
[1749523442566,1.15783391,109630.0,109620.0,0.47877834]
[1749523442879,1.15783391,109630.0,109620.0,0.46809226]
[1749523443173,1.15783391,109630.0,109620.0,0.48519006]
[1749523443942,1.15783391,109630.0,109620.0,0.4851899]
[1749523444158,1.15783391,109630.0,109620.0,0.48518988]
[1749523444428,1.15783391,109630.0,109620.0,0.08518988]
[1749523444970,1.15783391,109630.0,109620.0,0.48518988]
[1749523445329,1.15779598,109630.0,109620.0,0.48518988]
[1749523445679,1.15779598,109630.0,109620.0,0.4851898]
[1749523445865,1.15779598,109630.0,109620.0,0.4680922]
[1749523446098,1.15779598,109630.0,109620.0,0.4851898]
[1749523446721,1.15779598,109630.0,109620.0,0.4787782]
[1749523447160,1.24959384,109630.0,109620.0,0.46287821]
[1749523447369,1.81999469,109630.0,109620.0,0.01909795]
[1749523447597,1.83549469,109630.0,109620.0,0.002]
[1749523447978,1.83549469,109630.0,109620.0,0.0190991]
[1749523448221,1.83549469,109630.0,109620.0,0.002]
[1749523448359,0.72789299,109630.0,109620.0,0.0190926]
[1749523448562,1.83549469,109630.0,109620.0,0.01909261]
[1749523448971,1.83549469,109630.0,109620.0,0.002]
[1749523449165,1.83549469,109630.0,109620.0,0.01909239]
[1749523449368,1.28179254,109630.0,109620.0,0.002]
[1749523449573,1.28179254,109630.0,109620.0,0.01909239]
[1749523450579,1.30918054,109630.0,109620.0,0.01908998]
[1749523450819,1.30918054,109630.0,109620.0,0.002]
[1749523450998,1.30918054,109630.0,109620.0,0.01908997]
[1749523452446,1.30918054,109630.0,109620.0,0.01908905]
[1749523452687,1.30918054,109630.0,109620.0,0.002]
[1749523452823,1.30918054,109630.0,109620.0,0.01908907]
[1749523452824,1.27700054,109630.0,109620.0,0.01908907]
[1749523453029,1.27700054,109630.0,109620.0,0.03468907]
[1749523453228,0.87773254,109630.0,109620.0,0.03468907]
[1749523453439,1.24961254,109630.0,109620.0,0.0329]
[1749523453611,1.24961254,109630.0,109620.0,0.04998797]
[1749523453816,0.69571299,109630.0,109620.0,0.0329]
[1749523454109,1.24961254,109630.0,109620.0,0.04998747]
[1749523454721,1.24961254,109630.0,109620.0,0.04998765]
[1749523454857,1.24961254,109630.0,109620.0,0.03468765]
[1749523455064,1.24961254,109630.0,109620.0,0.03468801]
[1749523455518,1.24961254,109630.0,109620.0,0.0176]
[1749523455854,1.24961254,109630.0,109620.0,0.03468826]
[1749523456079,1.24961254,109630.0,109620.0,0.03468834]
[1749523456283,1.24961254,109630.0,109620.0,0.03468839]
[1749523456459,1.24961254,109630.0,109620.0,0.0176]
[1749523456664,1.24961254,109630.0,109620.0,0.0346884]
[1749523457279,1.24961254,109630.0,109620.0,0.0176]
[1749523457492,0.69571299,109630.0,109620.0,0.0176]
[1749523457701,1.24961254,109630.0,109620.0,0.0333]
[1749523458339,0.87773254,109630.0,109620.0,0.05038796]
[1749523458540,1.24957254,109630.0,109620.0,0.05038796]
[1749523459327,1.24957254,109630.0,109620.0,0.05038825]
[1749523459539,1.24957254,109630.0,109620.0,0.0333]
[1749523459739,1.24957254,109630.0,109620.0,0.05038825]
[1749523460555,0.77831776,109630.0,109620.0,0.05038825]
[1749523460711,1.15011776,109630.0,109620.0,0.05038825]
[1749523460917,1.15011776,109630.0,109620.0,0.05038794]
[1749523461097,1.15011776,109630.0,109620.0,0.07766844]
[1749523461501,1.15011776,109630.0,109620.0,0.07766829]
[1749523462178,1.15011776,109630.0,109620.0,0.0776676]
[1749523462511,1.15011776,109630.0,109620.0,0.0605806]
[1749523463053,1.15011776,109630.0,109620.0,0.0776676]
[1749523463233,0.7874391,109630.0,109620.0,0.26011605]
[1749523463436,0.002,109630.0,109620.0,0.79701434]
[1749523463643,0.31292309,109630.0,109620.0,0.85967744]
[1749523463836,0.31292309,109630.0,109620.0,0.91425882]
[1749523464203,0.01112084,109630.0,109620.0,0.91425882]
[1749523464411,0.31288318,109630.0,109620.0,0.91425851]
[1749523464822,0.31288318,109630.0,109620.0,0.89718223]
[1749523465231,0.002,109630.0,109620.0,0.91425851]
[1749523465434,0.002,109630.0,109620.0,1.36960054]
[1749523465612,0.01112084,109630.0,109620.0,1.36960054]
[1749523465848,0.002,109630.0,109620.0,1.36960054]
[1749523466055,1.03388702,109640.0,109630.0,0.42977474]
[1749523466182,1.03388702,109640.0,109630.0,0.50261028]
[1749523466382,1.03388702,109640.0,109630.0,0.51968525]
[1749523466584,0.54098702,109640.0,109630.0,0.91968523]
[1749523466996,0.53186693,109640.0,109630.0,0.91968523]
[1749523467199,0.52525001,109640.0,109630.0,0.91968523]
[1749523467410,0.34133109,109640.0,109630.0,0.93792732]
[1749523467620,0.35045168,109640.0,109630.0,0.93792732]
[1749523467825,0.06693168,109640.0,109630.0,0.93790937]
[1749523468032,0.35041168,109640.0,109630.0,0.93790937]
[1749523468251,0.35041168,109640.0,109630.0,0.92085237]
[1749523468661,0.36053235,109640.0,109630.0,0.93790744]
[1749523469070,0.36203618,109640.0,109630.0,0.92878644]
[1749523469282,0.54294793,109640.0,109630.0,0.92878644]
[1749523469499,0.52621051,109640.0,109630.0,0.87413593]
[1749523469720,0.52470684,109640.0,109630.0,0.87412728]
[1749523470045,0.52470684,109640.0,109630.0,0.85708102]
[1749523470248,0.05119392,109640.0,109630.0,0.90148871]
[1749523470564,0.02794586,109640.0,109630.0,0.90148876]
[1749523470770,0.03706653,109640.0,109630.0,0.92085287]
[1749523470967,0.22860245,109640.0,109630.0,0.92877588]
[1749523471166,0.22860245,109640.0,109630.0,0.937897]
[1749523471343,0.22860245,109640.0,109630.0,0.93789701]
[1749523471544,0.22860245,109640.0,109630.0,0.9208532]
[1749523471760,0.22860245,109640.0,109630.0,0.93789698]
[1749523472006,0.22860245,109640.0,109630.0,0.93789615]
[1749523472145,0.22860245,109640.0,109630.0,0.96479123]
[1749523472848,0.22860245,109640.0,109630.0,0.94774745]
[1749523473050,0.21948228,109640.0,109630.0,0.94654223]
[1749523473417,0.21948228,109640.0,109630.0,0.92950519]
[1749523473617,0.21948228,109640.0,109630.0,0.94653961]
[1749523474558,0.21948228,109640.0,109630.0,0.90100654]
[1749523474688,0.21948228,109640.0,109630.0,0.88397577]
[1749523474894,0.21948228,109640.0,109630.0,0.90100655]
[1749523475118,0.21036186,109640.0,109630.0,0.88397577]
[1749523475327,0.21036186,109640.0,109630.0,0.90100655]
[1749523475527,0.21036186,109640.0,109630.0,0.88276379]
[1749523475768,0.20124119,109640.0,109630.0,0.70945357]
[1749523475984,0.20124119,109640.0,109630.0,0.71857499]
[1749523476509,0.20124119,109640.0,109630.0,0.70154421]
[1749523476730,0.20124119,109640.0,109630.0,0.71857248]
[1749523476941,0.01120836,109640.0,109630.0,0.95565431]
[1749523477186,0.02944929,109640.0,109630.0,1.50955377]
[1749523477706,0.02944895,109640.0,109630.0,1.50955377]
[1749523478043,0.03756945,109640.0,109630.0,1.49252599]
[1749523478246,0.02844895,109640.0,109630.0,1.50955354]
[1749523478453,0.03656945,109640.0,109630.0,1.49452599]
[1749523478661,0.03656945,109640.0,109630.0,1.51155201]
[1749523478866,0.02744895,109640.0,109630.0,1.49652599]
[1749523479262,0.03656937,109640.0,109630.0,1.49652599]
[1749523479443,0.02744895,109640.0,109630.0,1.49652599]
[1749523479640,0.01832861,109640.0,109630.0,1.58832385]
[1749523480734,0.02744903,109640.0,109630.0,1.58832385]
[1749523481264,0.01832853,109640.0,109630.0,1.58832385]
[1749523481989,8.835e-05,109640.0,109630.0,1.58832385]
[1749523482255,0.00920844,109640.0,109630.0,1.58832385]
[1749523482568,8.835e-05,109640.0,109630.0,1.56101773]
[1749523482747,8.835e-05,109640.0,109630.0,1.61560797]
[1749523483304,8.835e-05,109640.0,109630.0,1.79374065]
[1749523483506,8.835e-05,109640.0,109630.0,1.89374065]
[1749523484138,8.835e-05,109640.0,109630.0,1.89174065]
[1749523484339,8.835e-05,109640.0,109630.0,1.89274065]
[1749523484735,8.835e-05,109640.0,109630.0,1.89474065]
[1749523489492,0.01832878,109640.0,109630.0,2.17802065]
[1749523489616,0.0274492,109640.0,109630.0,2.17802065]
[1749523489828,0.22810579,109640.0,109630.0,1.40958051]
[1749523490025,0.04569062,109640.0,109630.0,1.4187016]
[1749523490228,0.0274492,109640.0,109630.0,1.41870101]
[1749523490429,0.03656979,109640.0,109630.0,1.41870101]
[1749523491069,0.21898595,109640.0,109630.0,1.10805775]
[1749523491272,0.03657078,109640.0,109630.0,1.40954009]
[1749523491796,0.02745003,109640.0,109630.0,1.41866109]
[1749523493390,0.01832894,109640.0,109630.0,1.41866109]
[1749523493610,0.03656986,109640.0,109630.0,1.41866109]
[1749523493840,0.02744927,109640.0,109630.0,1.41866109]
[1749523494447,0.01832877,109640.0,109630.0,1.41866109]
[1749523496750,0.00920852,109640.0,109630.0,1.41866109]
[1749523497580,0.00920844,109640.0,109630.0,1.41866109]
[1749523498627,8.835e-05,109640.0,109630.0,1.36407085]
[1749523498837,0.00920844,109640.0,109630.0,1.36407085]
[1749523500601,0.00920836,109640.0,109630.0,1.36407085]
[1749523501287,8.835e-05,109640.0,109630.0,1.36407085]
[1749523501700,0.00920844,109640.0,109630.0,1.36407085]
[1749523502376,8.835e-05,109640.0,109630.0,1.36407085]
[1749523503058,0.00920844,109640.0,109630.0,1.36407085]
[1749523503314,8.835e-05,109640.0,109630.0,1.36407085]
[1749523503554,0.00920836,109640.0,109630.0,1.43685784]
[1749523505217,8.835e-05,109640.0,109630.0,1.43685784]
[1749523505380,0.00920836,109640.0,109630.0,1.43685784]
[1749523506586,0.01832845,109640.0,109630.0,1.43685784]
[1749523507241,8.835e-05,109640.0,109630.0,1.43685784]
[1749523507493,0.01832853,109640.0,109630.0,1.43685784]
[1749523507712,0.01832853,109640.0,109630.0,1.42165784]
[1749523507932,0.00920836,109640.0,109630.0,1.42165784]
[1749523508144,0.02744879,109640.0,109630.0,1.42153784]
[1749523508368,0.02744879,109640.0,109630.0,1.13841784]
[1749523508600,0.02744879,109640.0,109630.0,1.42153784]
[1749523509327,0.03656929,109640.0,109630.0,1.42153784]
[1749523509518,0.02744879,109640.0,109630.0,1.42153784]
[1749523509739,0.20986454,109640.0,109630.0,0.98511388]
[1749523509941,0.26230943,109640.0,109630.0,1.00335697]
[1749523510150,0.26230943,109640.0,109630.0,1.01247839]
[1749523510375,0.26230943,109640.0,109630.0,0.703]
[1749523510376,0.81620898,109640.0,109630.0,0.703]
[1749523510584,0.81620898,109640.0,109630.0,0.75767331]
[1749523510790,0.26230943,109640.0,109630.0,0.75767331]
[1749523512081,0.81620898,109640.0,109630.0,0.75767331]
[1749523512304,0.81620898,109640.0,109630.0,0.7667949]
[1749523513140,0.81620898,109640.0,109630.0,0.95834821]
[1749523513364,0.26230943,109640.0,109630.0,0.96746955]
[1749523515319,0.06469426,109640.0,109630.0,0.9857118]
[1749523515566,0.04919426,109640.0,109630.0,1.0011118]
[1749523515769,0.05831435,109640.0,109630.0,1.0011118]
[1749523516191,0.0674351,109640.0,109630.0,1.00111197]
[1749523516395,0.0674351,109640.0,109630.0,1.00111147]
[1749523516804,0.05831435,109640.0,109630.0,1.00111097]
[1749523517219,8.835e-05,109640.0,109630.0,1.66190838]
[1749523517418,8.835e-05,109640.0,109630.0,1.60723507]
[1749523517626,8.835e-05,109640.0,109630.0,1.68002206]
[1749523518046,8.835e-05,109640.0,109630.0,1.88002206]
[1749523519676,8.835e-05,109640.0,109630.0,1.90786635]
[1749523525317,8.835e-05,109640.0,109630.0,1.90734506]
[1749523526257,0.00920836,109640.0,109630.0,1.90734506]
[1749523526526,8.835e-05,109640.0,109630.0,1.90734506]
[1749523526745,0.00920852,109640.0,109630.0,1.3388668]
[1749523526943,0.00920844,109640.0,109630.0,1.3388668]
[1749523527227,0.02744895,109640.0,109630.0,1.4218668]
[1749523527639,0.01832861,109640.0,109630.0,1.4218668]
[1749523527852,0.02744903,109640.0,109630.0,1.4218668]
[1749523529089,0.02744903,109640.0,109630.0,1.1388668]
[1749523529301,0.02744903,109640.0,109630.0,1.4218668]
[1749523529672,0.02744895,109640.0,109630.0,1.4218668]
[1749523530314,0.00920844,109640.0,109630.0,1.4382668]
[1749523530553,8.835e-05,109640.0,109630.0,1.4382668]
[1749523530684,0.00920836,109640.0,109630.0,1.99164506]
[1749523530886,8.835e-05,109640.0,109630.0,1.99164506]
[1749523531305,8.835e-05,109640.0,109630.0,2.02509312]
[1749523531582,8.835e-05,109640.0,109630.0,2.03118591]
[1749523531787,8.835e-05,109640.0,109630.0,1.47780765]
[1749523531924,8.835e-05,109640.0,109630.0,2.03118591]
[1749523532327,8.835e-05,109640.0,109630.0,1.47780765]
[1749523532687,8.835e-05,109640.0,109630.0,2.03118591]
[1749523535263,8.835e-05,109640.0,109630.0,7.08118591]
[1749523535465,8.835e-05,109640.0,109630.0,6.52780765]
[1749523535674,8.835e-05,109640.0,109630.0,7.08118591]
[1749523536511,8.835e-05,109640.0,109630.0,7.00839892]
[1749523538182,8.835e-05,109640.0,109630.0,6.45502066]
[1749523538657,8.835e-05,109640.0,109630.0,7.00839892]
[1749523538882,8.835e-05,109640.0,109630.0,6.45502066]
[1749523539148,8.835e-05,109640.0,109630.0,7.00839892]
[1749523539352,8.835e-05,109640.0,109630.0,4.24482732]
[1749523539754,8.835e-05,109640.0,109630.0,3.69144906]
[1749523539992,8.835e-05,109640.0,109630.0,4.24482732]
[1749523541611,8.835e-05,109640.0,109630.0,4.17199892]
[1749523542043,8.835e-05,109640.0,109630.0,4.29643071]
[1749523542675,0.15655361,109670.0,109660.0,0.20973818]
[1749523542875,0.14748408,109670.0,109660.0,0.54970496]
[1749523543163,0.15660201,109670.0,109660.0,0.54970496]
[1749523543437,0.14748408,109670.0,109660.0,0.94970496]
[1749523543686,0.15660201,109670.0,109660.0,0.95888548]
[1749523543930,0.0096654,109670.0,109660.0,1.6050616]
[1749523544197,0.0096654,109670.0,109660.0,1.6206616]
[1749523545188,0.00204848,109670.0,109660.0,1.6206616]
[1749523545396,0.00204848,109670.0,109660.0,1.6371616]
[1749523545590,0.00204848,109670.0,109660.0,1.67039482]
[1749523546387,0.00204848,109670.0,109660.0,1.74320386]
[1749523548136,0.00204848,109670.0,109660.0,1.72670386]
[1749523548942,0.00204848,109670.0,109660.0,1.65389482]
[1749523550342,0.00204848,109670.0,109660.0,1.66969482]
[1749523550543,0.00204848,109670.0,109660.0,1.74250386]
[1749523551639,0.00204848,109670.0,109660.0,1.1891256]
[1749523551843,0.00204848,109670.0,109660.0,6.71969482]
[1749523552055,0.00204848,109670.0,109660.0,7.34049277]
[1749523552255,0.00204848,109670.0,109660.0,6.83267978]
[1749523552459,0.00204848,109670.0,109660.0,7.29504673]
[1749523553230,0.00204848,109670.0,109660.0,7.38505804]
[1749523553450,0.00204848,109670.0,109660.0,7.26459867]
[1749523554105,0.00204848,109670.0,109660.0,4.48909867]
[1749523554349,0.00204848,109670.0,109660.0,3.64605867]
[1749523554536,0.00204848,109670.0,109660.0,3.66183229]
[1749523554786,0.00204848,109670.0,109660.0,3.64353229]
[1749523557999,0.00204848,109670.0,109660.0,3.69829229]
[1749523559678,0.00204848,109670.0,109660.0,3.32473229]
[1749523559898,0.00204848,109670.0,109660.0,2.62540929]
[1749523560119,0.00204848,109670.0,109660.0,2.47496929]
[1749523560803,0.00204848,109670.0,109660.0,1.54643103]
[1749523561027,0.00204848,109670.0,109660.0,2.08340929]
[1749523561252,0.00204848,109670.0,109660.0,2.42846844]
[1749523562658,0.00204848,109670.0,109660.0,2.44456844]
[1749523563570,0.00204848,109670.0,109660.0,2.42846844]
[1749523564271,0.00204848,109670.0,109660.0,1.87509018]
[1749523564477,0.00204848,109670.0,109660.0,2.42846844]
[1749523564753,0.00204848,109670.0,109660.0,2.44396844]
[1749523567029,0.00204848,109670.0,109660.0,2.45850929]
[1749523567268,0.00204848,109670.0,109660.0,2.53285735]
[1749523568584,0.00204848,109670.0,109660.0,2.46028373]
[1749523569009,0.00204848,109670.0,109660.0,2.55129504]
[1749523574283,0.00204848,109670.0,109660.0,2.51784698]
[1749523574696,0.00204848,109670.0,109660.0,2.50182698]
[1749523576106,0.00204848,109670.0,109660.0,2.55097504]
[1749523576315,0.00204848,109670.0,109660.0,1.99759678]
[1749523576520,0.00204848,109670.0,109660.0,2.55097504]
[1749523577170,0.00204848,109670.0,109660.0,2.55109504]
[1749523578215,0.00204848,109670.0,109660.0,1.96426872]
[1749523578422,0.00204848,109670.0,109660.0,2.51764698]
[1749523578685,0.00204848,109670.0,109660.0,2.51772698]
[1749523578895,0.00204848,109670.0,109660.0,2.12674698]
[1749523579102,0.00204848,109670.0,109660.0,2.50202698]
[1749523579526,0.00204848,109670.0,109660.0,2.12674698]
[1749523579742,0.00204848,109670.0,109660.0,2.47706698]
[1749523580207,0.00204848,109670.0,109660.0,1.90818872]
[1749523580413,0.03374848,109670.0,109660.0,1.69558872]
[1749523580631,0.03374848,109670.0,109660.0,1.69566872]
[1749523581057,0.04286607,109670.0,109660.0,1.30572787]
[1749523581269,0.04286607,109670.0,109660.0,1.59015656]
[1749523581477,0.03374848,109670.0,109660.0,1.59015656]
[1749523581691,0.03374848,109670.0,109660.0,2.14353482]
[1749523582113,0.03374848,109670.0,109660.0,1.76809482]
[1749523582318,0.03374848,109670.0,109660.0,2.14357482]
[1749523583150,0.01824848,109670.0,109660.0,1.59019656]
[1749523583370,0.02736607,109670.0,109660.0,1.59019656]
[1749523583572,0.04276599,109670.0,109660.0,2.14357482]
[1749523583808,0.03364848,109670.0,109660.0,2.14357482]
[1749523584022,0.07011951,109670.0,109660.0,1.76809482]
[1749523584223,0.06100134,109670.0,109660.0,2.21676656]
[1749523584630,0.06100126,109670.0,109660.0,2.21676656]
[1749523584846,0.06100126,109670.0,109660.0,1.6633883]
[1749523585096,0.06100126,109670.0,109660.0,1.4633883]
[1749523585298,0.05188358,109670.0,109660.0,1.4633883]
[1749523585500,0.06100134,109670.0,109660.0,1.4633883]
[1749523585926,0.05188358,109670.0,109660.0,1.4633883]
[1749523586567,0.04276599,109670.0,109660.0,1.4633883]
[1749523586779,0.03568367,109670.0,109660.0,0.59690486]
[1749523587006,0.04286599,109670.0,109660.0,0.72426114]
[1749523587411,0.04286616,109670.0,109660.0,0.72426114]
[1749523587893,0.04286616,109670.0,109660.0,1.12426114]
[1749523588119,0.051984,109670.0,109660.0,1.13324445]
[1749523588340,0.07022011,109670.0,109660.0,0.75512667]
[1749523588548,0.07022002,109670.0,109660.0,0.76424518]
[1749523588972,0.11020326,109670.0,109660.0,0.71872157]
[1749523589176,0.27433301,109670.0,109660.0,0.70048422]
[1749523589380,0.27433301,109670.0,109660.0,0.73690441]
[1749523590088,0.26521508,109670.0,109660.0,0.73690441]
[1749523591762,0.26521508,109670.0,109660.0,0.74602317]
[1749523592202,0.08284939,109670.0,109660.0,0.76426043]
[1749523592406,0.09196757,109670.0,109660.0,0.36425993]
[1749523592815,0.09196757,109670.0,109660.0,0.76425993]
[1749523594269,0.27433284,109670.0,109660.0,0.72778565]
[1749523594469,0.10108583,109670.0,109660.0,0.74602316]
[1749523595056,0.10108583,109670.0,109660.0,0.75514167]
[1749523595886,0.09196757,109670.0,109660.0,0.75514167]
[1749523596632,0.09196698,109670.0,109660.0,0.75514167]
[1749523596842,0.09196698,109670.0,109660.0,0.76424542]
[1749523597241,0.09196698,109670.0,109660.0,0.36424542]
[1749523597446,0.0919669,109670.0,109660.0,0.36424542]
[1749523597862,0.0919669,109670.0,109660.0,0.76424542]
[1749523598296,0.08284889,109670.0,109660.0,0.76424542]
[1749523598492,0.09196698,109670.0,109660.0,0.76424542]
[1749523598619,0.08284889,109670.0,109660.0,0.76424542]
[1749523598818,0.0919669,109670.0,109660.0,0.76424542]
[1749523601142,0.08284889,109670.0,109660.0,0.76424542]
[1749523601363,0.0919669,109670.0,109660.0,0.76424542]
[1749523602148,0.0919669,109670.0,109660.0,0.81885307]
[1749523603232,0.09196682,109670.0,109660.0,0.81885307]
[1749523603392,0.08284889,109670.0,109660.0,0.81885307]
[1749523603596,0.0919669,109670.0,109660.0,0.81885307]
[1749523604575,0.10108508,109670.0,109660.0,0.81885307]
[1749523604779,0.11020334,109670.0,109660.0,0.80973456]
[1749523605696,0.28345102,109670.0,109660.0,0.80061589]
[1749523605909,0.26521517,109670.0,109660.0,0.79149705]
[1749523606118,0.26521517,109670.0,109660.0,0.80973464]
[1749523606559,0.26521517,109670.0,109660.0,0.76421087]
[1749523606774,0.26521517,109670.0,109660.0,0.79147753]
[1749523607400,0.26521517,109670.0,109660.0,0.56359096]
[1749523607577,0.26521517,109670.0,109660.0,0.6091036]
[1749523607777,0.26521517,109670.0,109660.0,0.61822261]
[1749523607999,0.25609699,109670.0,109660.0,0.61822261]
[1749523608427,0.25609699,109670.0,109660.0,0.7733298]
[1749523608840,0.25609699,109670.0,109660.0,0.76421096]
[1749523609392,0.25609699,109670.0,109660.0,0.77332988]
[1749523609592,0.25609699,109670.0,109660.0,0.37332988]
[1749523610208,0.25609699,109670.0,109660.0,0.77332988]
[1749523610414,0.25609699,109670.0,109660.0,0.76421096]
[1749523611476,0.26371391,109670.0,109660.0,0.56359096]
[1749523611689,0.26371391,109670.0,109660.0,0.54540701]
[1749523613176,0.26371391,109670.0,109660.0,0.14540701]
[1749523613600,0.26371391,109670.0,109660.0,0.54540701]
[1749523616967,0.26371391,109670.0,109660.0,0.14540701]
[1749523617357,0.26371391,109670.0,109660.0,0.54540701]
[1749523618399,0.26371391,109670.0,109660.0,0.60001466]
[1749523618606,0.26371391,109670.0,109660.0,0.54540701]
[1749523620362,0.26371391,109670.0,109660.0,0.14540701]
[1749523620800,0.26371391,109670.0,109660.0,0.54540701]
[1749523621174,0.26371391,109670.0,109660.0,0.5364237]
[1749523623685,0.26371391,109670.0,109660.0,0.56374416]
[1749523623882,0.26371391,109670.0,109660.0,0.16374416]
[1749523624503,0.26371391,109670.0,109660.0,0.56275505]
[1749523624717,0.26371391,109670.0,109660.0,0.56374416]
[1749523627540,0.26371391,109670.0,109660.0,0.16374416]
[1749523628063,0.26371391,109670.0,109660.0,0.56374416]
[1749523631014,0.26371391,109670.0,109660.0,0.16374416]
[1749523631668,0.26371391,109670.0,109660.0,0.56374416]
[1749523633701,0.26371391,109670.0,109660.0,0.16374416]
[1749523633907,0.35551177,109670.0,109660.0,0.16374416]
[1749523634121,0.35551177,109670.0,109660.0,0.1]
[1749523634547,0.26220279,109650.0,109640.0,0.02732046]
[1749523634772,0.25310074,109640.0,109630.0,0.198]
[1749523634987,0.3448986,109640.0,109630.0,0.198]
[1749523635203,0.35251552,109640.0,109630.0,0.198]
[1749523635804,0.72855552,109640.0,109630.0,0.198]
[1749523636235,0.73055552,109640.0,109630.0,0.198]
[1749523637109,0.73255552,109640.0,109630.0,0.198]
[1749523637753,0.35651552,109640.0,109630.0,0.2065133]
[1749523638189,0.73275552,109640.0,109630.0,0.2065133]
[1749523638398,0.73275552,109640.0,109630.0,0.206513]
[1749523638605,0.73275552,109640.0,109630.0,0.22353881]
[1749523638810,0.73275552,109640.0,109630.0,0.21502581]
[1749523639024,0.73275552,109640.0,109630.0,0.20651196]
[1749523639246,0.73275552,109640.0,109630.0,0.198]
[1749523639708,0.73275552,109640.0,109630.0,0.21502395]
[1749523639924,0.73275552,109640.0,109630.0,0.20651197]
[1749523640153,0.73275552,109640.0,109630.0,0.22353607]
[1749523640564,0.73275552,109640.0,109630.0,0.22353613]
[1749523640821,0.73275552,109640.0,109630.0,0.22351907]
[1749523641029,0.73275552,109640.0,109630.0,0.20651202]
[1749523641234,0.73275552,109640.0,109630.0,0.198]
[1749523641459,0.73275552,109640.0,109630.0,0.20650361]
[1749523642105,0.73275552,109640.0,109630.0,0.22351081]
[1749523642737,0.73275552,109640.0,109630.0,0.20650164]
[1749523642957,0.73275552,109640.0,109630.0,0.198]
[1749523643180,0.73275552,109640.0,109630.0,0.20650164]
[1749523644539,0.73275552,109640.0,109630.0,0.198]
[1749523644743,0.73275552,109640.0,109630.0,0.20649828]
[1749523644948,0.73275552,109640.0,109630.0,0.20649825]
[1749523645150,0.73275552,109640.0,109630.0,0.198]
[1749523645359,0.73275552,109640.0,109630.0,0.20649827]
[1749523645955,0.73275552,109640.0,109630.0,0.198]
[1749523649273,0.73275552,109640.0,109630.0,0.22348945]
[1749523649638,0.73275552,109640.0,109630.0,0.21499475]
[1749523650084,0.73275552,109640.0,109630.0,0.20649737]
[1749523650276,0.73275552,109640.0,109630.0,0.198]
[1749523650488,0.73275552,109640.0,109630.0,0.22349193]
[1749523650640,0.35651552,109640.0,109630.0,0.22349193]
[1749523650840,0.73295552,109640.0,109630.0,0.22349193]
[1749523651060,0.73295552,109640.0,109630.0,0.22349205]
[1749523651670,0.73295552,109640.0,109630.0,0.198]
[1749523651882,0.73295552,109640.0,109630.0,0.21499472]
[1749523652095,0.73295552,109640.0,109630.0,0.22349208]
[1749523652530,0.73295552,109640.0,109630.0,0.22349331]
[1749523653127,0.73295552,109640.0,109630.0,0.22349898]
[1749523653331,0.73295552,109640.0,109630.0,0.21500039]
[1749523653459,0.73295552,109640.0,109630.0,0.2235006]
[1749523653832,0.73295552,109640.0,109630.0,0.2065002]
[1749523654007,0.73295552,109640.0,109630.0,0.2235006]
[1749523654442,0.73295552,109640.0,109630.0,0.22350604]
[1749523654611,0.73295552,109640.0,109630.0,0.21500403]
[1749523654826,0.73295552,109640.0,109630.0,0.20650202]
[1749523655049,0.73295552,109640.0,109630.0,0.198]
[1749523655605,0.73295552,109640.0,109630.0,0.22350606]
[1749523656586,0.73295552,109640.0,109630.0,0.22350604]
[1749523656805,0.73295552,109640.0,109630.0,0.22989841]
[1749523657013,0.73295552,109640.0,109630.0,0.198]
[1749523657215,0.73295552,109640.0,109630.0,0.21288592]
[1749523657424,0.73295552,109640.0,109630.0,0.22989844]
[1749523658061,0.73295552,109640.0,109630.0,0.2150125]
[1749523658263,0.73295552,109640.0,109630.0,0.22990195]
[1749523658471,0.38389852,109640.0,109630.0,0.22990597]
[1749523658675,0.76077852,109640.0,109630.0,0.21288945]
[1749523658901,0.76077852,109640.0,109630.0,0.22352476]
[1749523659120,0.76077852,109640.0,109630.0,0.22990597]
[1749523659937,0.76077852,109640.0,109630.0,0.22990599]
[1749523660179,0.76077852,109640.0,109630.0,0.198]
[1749523660389,0.76077852,109640.0,109630.0,0.22352481]
[1749523660605,0.76077852,109640.0,109630.0,0.2043812]
[1749523660832,0.76077852,109640.0,109630.0,0.22352479]
[1749523661050,0.76077852,109640.0,109630.0,0.22990599]
[1749523661270,0.86711723,109640.0,109630.0,0.22352479]
[1749523661491,0.93973558,109640.0,109630.0,0.198]
[1749523661712,0.98973558,109640.0,109630.0,0.198]
[1749523664483,0.91719723,109640.0,109630.0,0.198]
[1749523665834,0.82531937,109640.0,109630.0,0.198]
[1749523673211,0.82543937,109640.0,109630.0,0.198]
[1749523682138,0.44843937,109640.0,109630.0,0.198]
[1749523682338,0.82475937,109640.0,109630.0,0.198]
[1749523684950,0.82479937,109640.0,109630.0,0.198]